[Event "Titled Tuesday Blitz October 12 2021"]
[White "Florescu, Codrut-Constantin"]
[Black "Abdyzhapar, Asylbek"]
[WhiteFideId "1202200"]
[BlackFideId "13800337"]
[WhiteElo "2243"]
[BlackElo "2383"]
[Result "0-1"]
[Round "03"]
[TimeControl "180+1"]
[Date "2021.10.12"]
[WhiteClock "0:00:03"]
[BlackClock "0:00:03"]

1. d4 {[%clk 0:03:00]}  Nf6 {[%clk 0:02:57]} 2. c4 {[%clk 0:03:00]}  g6 {[%clk 0:02:57]} 3. Nc3 {[%clk 0:02:59]}  d6 {[%clk 0:02:58]} 4. e4 {[%clk 0:02:58]}  Bg7 {[%clk 0:02:58]} 5. Nf3 {[%clk 0:02:58]}  O-O {[%clk 0:02:58]} 6. Be2 {[%clk 0:02:58]}  e5 {[%clk 0:02:57]} 7. d5 {[%clk 0:02:59]}  Nbd7 {[%clk 0:02:55]} 8. h3 {[%clk 0:02:57]}  Nc5 {[%clk 0:02:54]} 9. Qc2 {[%clk 0:02:51]}  a5 {[%clk 0:02:49]} 10. Bg5 {[%clk 0:02:50]}  h6 {[%clk 0:02:47]} 11. Be3 {[%clk 0:02:49]}  c6 {[%clk 0:02:20]} 12. Nd2 {[%clk 0:02:36]}  cxd5 {[%clk 0:02:18]} 13. cxd5 {[%clk 0:02:36]}  Bd7 {[%clk 0:02:07]} 14. a4 {[%clk 0:02:33]}  Rc8 {[%clk 0:02:01]} 15. O-O {[%clk 0:02:28]}  Ne8 {[%clk 0:01:47]} 16. Bb5 {[%clk 0:02:17]}  f5 {[%clk 0:01:45]} 17. f3 {[%clk 0:02:05]}  Nf6 {[%clk 0:01:33]} 18. Bxd7 {[%clk 0:01:58]}  Qxd7 {[%clk 0:01:32]} 19. exf5 {[%clk 0:01:38]}  gxf5 {[%clk 0:01:31]} 20. Nc4 {[%clk 0:01:34]}  Qe7 {[%clk 0:01:28]} 21. Qxf5 {[%clk 0:01:17]}  e4 {[%clk 0:01:27]} 22. f4 {[%clk 0:00:45]}  Nb3 {[%clk 0:01:19]} 23. Nb6 {[%clk 0:00:43]}  Rce8 {[%clk 0:01:03]} 24. Rad1 {[%clk 0:00:41]}  Nd7 {[%clk 0:01:01]} 25. Qxd7 {[%clk 0:00:40]}  Qf6 {[%clk 0:00:58]} 26. Nc4 {[%clk 0:00:32]}  Qg6 {[%clk 0:00:52]} 27. Qxd6 {[%clk 0:00:27]}  Rf6 {[%clk 0:00:41]} 28. Qc7 {[%clk 0:00:23]}  Qg3 {[%clk 0:00:38]} 29. d6 {[%clk 0:00:19]}  Rg6 {[%clk 0:00:35]} 30. Rf2 {[%clk 0:00:18]}  Bf6 {[%clk 0:00:17]} 31. d7 {[%clk 0:00:18]}  Rd8 {[%clk 0:00:17]} 32. Nd5 {[%clk 0:00:16]}  Bh4 {[%clk 0:00:14]} 33. Re2 {[%clk 0:00:15]}  Qxh3 {[%clk 0:00:11]} 34. f5 {[%clk 0:00:15]}  Qxf5 {[%clk 0:00:10]} 35. Nf4 {[%clk 0:00:14]}  Rg7 {[%clk 0:00:06]} 36. Qd6 {[%clk 0:00:11]}  Rgxd7 {[%clk 0:00:04]} 37. Qxh6 {[%clk 0:00:05]}  Rxd1+ {[%clk 0:00:04]} 38. Kh2 {[%clk 0:00:06]}  Qg4 {[%clk 0:00:03]} 39. Ne5 {[%clk 0:00:03]}  Qg3# {[%clk 0:00:03]} 0-1


[Site "https://www.chess.com"]

[Event "Titled Tuesday Blitz October 12 2021"]
[White "Garcia Garcia, Alejandro"]
[Black "Mikhalevski, Victor"]
[WhiteFideId "3516334"]
[BlackFideId "2801914"]
[WhiteElo "2131"]
[BlackElo "2577"]
[Result "0-1"]
[Round "03"]
[TimeControl "180+1"]
[Date "2021.10.12"]
[WhiteClock "0:00:01"]
[BlackClock "0:00:57"]

1. Nf3 {[%clk 0:03:00]}  Nf6 {[%clk 0:02:59]} 2. g3 {[%clk 0:03:01]}  d5 {[%clk 0:02:58]} 3. Bg2 {[%clk 0:03:02]}  c6 {[%clk 0:02:58]} 4. O-O {[%clk 0:03:02]}  Bg4 {[%clk 0:02:57]} 5. h3 {[%clk 0:03:02]}  Bh5 {[%clk 0:02:56]} 6. d3 {[%clk 0:03:01]}  Nbd7 {[%clk 0:02:55]} 7. Qe1 {[%clk 0:03:01]}  e5 {[%clk 0:02:53]} 8. e4 {[%clk 0:03:01]}  dxe4 {[%clk 0:02:53]} 9. dxe4 {[%clk 0:03:02]}  Bc5 {[%clk 0:02:52]} 10. Nh4 {[%clk 0:02:53]}  O-O {[%clk 0:02:51]} 11. b3 {[%clk 0:02:48]}  a5 {[%clk 0:02:49]} 12. a4 {[%clk 0:02:48]}  Bd4 {[%clk 0:02:46]} 13. c3 {[%clk 0:02:43]}  Bb6 {[%clk 0:02:46]} 14. Nd2 {[%clk 0:02:42]}  Nc5 {[%clk 0:02:45]} 15. Nc4 {[%clk 0:02:26]}  Nd3 {[%clk 0:02:45]} 16. Qd2 {[%clk 0:02:25]}  Nxc1 {[%clk 0:02:34]} 17. Qxc1 {[%clk 0:02:21]}  Bc5 {[%clk 0:02:33]} 18. Qg5 {[%clk 0:01:46]}  Re8 {[%clk 0:02:15]} 19. g4 {[%clk 0:01:45]}  h6 {[%clk 0:02:11]} 20. Qc1 {[%clk 0:01:45]}  Nxe4 {[%clk 0:02:07]} 21. Nf5 {[%clk 0:01:29]}  Nxf2 {[%clk 0:02:02]} 22. Rxf2 {[%clk 0:01:26]}  Bxf2+ {[%clk 0:02:01]} 23. Kxf2 {[%clk 0:01:26]}  Bg6 {[%clk 0:02:02]} 24. Ncd6 {[%clk 0:01:10]}  Bxf5 {[%clk 0:01:49]} 25. Nxf5 {[%clk 0:00:49]}  Qb6+ {[%clk 0:01:48]} 26. Qe3 {[%clk 0:00:45]}  Qxb3 {[%clk 0:01:46]} 27. Rf1 {[%clk 0:00:25]}  Rad8 {[%clk 0:01:43]} 28. g5 {[%clk 0:00:24]}  Qc2+ {[%clk 0:01:36]} 29. Kg1 {[%clk 0:00:22]}  Qd2 {[%clk 0:01:34]} 30. Qf3 {[%clk 0:00:11]}  Qxg5 {[%clk 0:01:30]} 31. Nd6 {[%clk 0:00:11]}  Rf8 {[%clk 0:01:27]} 32. Nxb7 {[%clk 0:00:10]}  Rd5 {[%clk 0:01:18]} 33. Qe2 {[%clk 0:00:03]}  Rd2 {[%clk 0:01:15]} 34. Qf3 {[%clk 0:00:03]}  f5 {[%clk 0:01:12]} 35. Nc5 {[%clk 0:00:03]}  e4 {[%clk 0:01:12]} 36. Nxe4 {[%clk 0:00:03]}  Rxg2+ {[%clk 0:01:08]} 37. Qxg2 {[%clk 0:00:03]}  Qxg2+ {[%clk 0:01:08]} 38. Kxg2 {[%clk 0:00:04]}  fxe4 {[%clk 0:01:09]} 39. Rd1 {[%clk 0:00:04]}  Rf3 {[%clk 0:01:07]} 40. Rd8+ {[%clk 0:00:03]}  Kh7 {[%clk 0:01:06]} 41. c4 {[%clk 0:00:04]}  Rc3 {[%clk 0:01:04]} 42. Rd4 {[%clk 0:00:04]}  Rc2+ {[%clk 0:01:02]} 43. Kf1 {[%clk 0:00:04]}  e3 {[%clk 0:01:02]} 44. Re4 {[%clk 0:00:04]}  e2+ {[%clk 0:01:02]} 45. Ke1 {[%clk 0:00:04]}  c5 {[%clk 0:00:59]} 46. Rf4 {[%clk 0:00:03]}  g5 {[%clk 0:00:57]} 47. Re4 {[%clk 0:00:01]}  Kg6 {[%clk 0:00:57]} 0-1


[Site "https://www.chess.com"]

[Event "Titled Tuesday Blitz October 12 2021"]
[White "Gupta, Abhijeet"]
[Black "Nigmatov, Ortik"]
[WhiteFideId "5010608"]
[BlackFideId "14202131"]
[WhiteElo "2549"]
[BlackElo "2346"]
[Result "0-1"]
[Round "03"]
[TimeControl "180+1"]
[Date "2021.10.12"]
[WhiteClock "0:00:15"]
[BlackClock "0:00:13"]

1. b3 {[%clk 0:02:58]}  Nf6 {[%clk 0:02:57]} 2. Bb2 {[%clk 0:02:58]}  e6 {[%clk 0:02:58]} 3. g3 {[%clk 0:02:57]}  Be7 {[%clk 0:02:58]} 4. Bg2 {[%clk 0:02:57]}  O-O {[%clk 0:02:59]} 5. c4 {[%clk 0:02:54]}  d5 {[%clk 0:02:59]} 6. e3 {[%clk 0:02:54]}  c5 {[%clk 0:02:59]} 7. Ne2 {[%clk 0:02:51]}  Nc6 {[%clk 0:02:59]} 8. O-O {[%clk 0:02:44]}  d4 {[%clk 0:02:59]} 9. exd4 {[%clk 0:02:44]}  cxd4 {[%clk 0:02:59]} 10. d3 {[%clk 0:02:45]}  e5 {[%clk 0:02:59]} 11. Nd2 {[%clk 0:02:41]}  Bg4 {[%clk 0:02:55]} 12. h3 {[%clk 0:02:41]}  Bf5 {[%clk 0:02:55]} 13. Nc1 {[%clk 0:02:40]}  Qd7 {[%clk 0:02:54]} 14. Kh2 {[%clk 0:02:40]}  h5 {[%clk 0:02:54]} 15. Ne4 {[%clk 0:02:38]}  h4 {[%clk 0:02:48]} 16. Nxf6+ {[%clk 0:02:31]}  Bxf6 {[%clk 0:02:47]} 17. g4 {[%clk 0:02:32]}  Bg6 {[%clk 0:02:46]} 18. Qe2 {[%clk 0:02:31]}  Bg5 {[%clk 0:02:45]} 19. Kh1 {[%clk 0:02:29]}  f5 {[%clk 0:02:43]} 20. Rg1 {[%clk 0:02:25]}  fxg4 {[%clk 0:02:41]} 21. Bd5+ {[%clk 0:02:25]}  Kh7 {[%clk 0:02:38]} 22. Rxg4 {[%clk 0:02:19]}  Qf5 {[%clk 0:01:57]} 23. Be4 {[%clk 0:02:04]}  Qf6 {[%clk 0:01:28]} 24. Ba3 {[%clk 0:01:19]}  Rf7 {[%clk 0:01:14]} 25. f4 {[%clk 0:01:11]}  exf4 {[%clk 0:00:54]} 26. Rxh4+ {[%clk 0:01:10]}  Kg8 {[%clk 0:00:54]} 27. Rg4 {[%clk 0:01:00]}  Bxe4+ {[%clk 0:00:53]} 28. Qxe4 {[%clk 0:00:56]}  f3 {[%clk 0:00:54]} 29. Qd5 {[%clk 0:00:42]}  Ne5 {[%clk 0:00:46]} 30. Rg1 {[%clk 0:00:38]}  Qf5 {[%clk 0:00:46]} 31. Rg3 {[%clk 0:00:33]}  f2 {[%clk 0:00:46]} 32. Ne2 {[%clk 0:00:33]}  f1=Q+ {[%clk 0:00:46]} 33. Rxf1 {[%clk 0:00:33]}  Qxf1+ {[%clk 0:00:47]} 34. Ng1 {[%clk 0:00:34]}  Bf4 {[%clk 0:00:36]} 35. Rg2 {[%clk 0:00:34]}  Re8 {[%clk 0:00:33]} 36. Bd6 {[%clk 0:00:32]}  Nf3 {[%clk 0:00:31]} 37. Bxf4 {[%clk 0:00:22]}  Nxg1 {[%clk 0:00:31]} 38. Rxg7+ {[%clk 0:00:20]}  Kxg7 {[%clk 0:00:31]} 39. Qg5+ {[%clk 0:00:21]}  Kh8 {[%clk 0:00:20]} 40. Qh6+ {[%clk 0:00:20]}  Kg8 {[%clk 0:00:19]} 41. Qg6+ {[%clk 0:00:20]}  Kf8 {[%clk 0:00:16]} 42. Qh6+ {[%clk 0:00:20]}  Rg7 {[%clk 0:00:14]} 43. Bd6+ {[%clk 0:00:15]}  Kg8 {[%clk 0:00:13]} 0-1


[Site "https://www.chess.com"]

[Event "Titled Tuesday Blitz October 12 2021"]
[White "Karttunen, Mika"]
[Black "Yeletsky, Ivan"]
[WhiteFideId "502081"]
[BlackFideId "24180327"]
[WhiteElo "2343"]
[BlackElo "2352"]
[Result "1-0"]
[Round "03"]
[TimeControl "180+1"]
[Date "2021.10.12"]
[WhiteClock "0:00:32"]
[BlackClock "0:00:35"]

1. e4 {[%clk 0:03:00]}  Nf6 {[%clk 0:02:59]} 2. e5 {[%clk 0:03:00]}  Nd5 {[%clk 0:02:58]} 3. d4 {[%clk 0:03:00]}  d6 {[%clk 0:02:59]} 4. exd6 {[%clk 0:02:59]}  exd6 {[%clk 0:02:58]} 5. c4 {[%clk 0:02:59]}  Nf6 {[%clk 0:02:58]} 6. Nc3 {[%clk 0:02:59]}  d5 {[%clk 0:02:58]} 7. Nf3 {[%clk 0:02:56]}  Be7 {[%clk 0:02:44]} 8. Qb3 {[%clk 0:02:51]}  dxc4 {[%clk 0:02:42]} 9. Bxc4 {[%clk 0:02:50]}  O-O {[%clk 0:02:43]} 10. Ne5 {[%clk 0:02:19]}  Qe8 {[%clk 0:02:37]} 11. O-O {[%clk 0:02:06]}  Nc6 {[%clk 0:02:37]} 12. Nxc6 {[%clk 0:02:04]}  Qxc6 {[%clk 0:02:36]} 13. Bf4 {[%clk 0:01:48]}  a6 {[%clk 0:02:30]} 14. a4 {[%clk 0:01:43]}  Be6 {[%clk 0:01:48]} 15. d5 {[%clk 0:01:41]}  Nxd5 {[%clk 0:01:40]} 16. Bxd5 {[%clk 0:01:39]}  Bxd5 {[%clk 0:01:36]} 17. Qxd5 {[%clk 0:01:39]}  Qb6 {[%clk 0:01:33]} 18. Qd2 {[%clk 0:01:14]}  c6 {[%clk 0:01:30]} 19. Ne4 {[%clk 0:01:07]}  Rfd8 {[%clk 0:01:30]} 20. Qc2 {[%clk 0:01:06]}  h6 {[%clk 0:01:25]} 21. Rad1 {[%clk 0:01:04]}  Rd5 {[%clk 0:01:20]} 22. Be3 {[%clk 0:00:54]}  Qa5 {[%clk 0:01:02]} 23. Rxd5 {[%clk 0:00:51]}  cxd5 {[%clk 0:00:59]} 24. Nc3 {[%clk 0:00:50]}  Rd8 {[%clk 0:00:58]} 25. Rd1 {[%clk 0:00:48]}  Bf6 {[%clk 0:00:59]} 26. Bd4 {[%clk 0:00:45]}  Bg5 {[%clk 0:00:52]} 27. g3 {[%clk 0:00:44]}  Rd7 {[%clk 0:00:43]} 28. Qf5 {[%clk 0:00:38]}  Qd8 {[%clk 0:00:40]} 29. Re1 {[%clk 0:00:33]}  g6 {[%clk 0:00:35]} 30. Qe5 {[%clk 0:00:32]} 1-0


[Site "https://www.chess.com"]

[Event "Titled Tuesday Blitz October 12 2021"]
[White "Korchmar, Vasiliy"]
[Black "Kozak, Adam"]
[WhiteFideId "24131750"]
[BlackFideId "753246"]
[WhiteElo "2370"]
[BlackElo "2448"]
[Result "1-0"]
[Round "03"]
[TimeControl "180+1"]
[Date "2021.10.12"]
[WhiteClock "0:00:09"]
[BlackClock "0:00:04"]

1. e4 {[%clk 0:03:00]}  e6 {[%clk 0:02:48]} 2. d4 {[%clk 0:03:00]}  d5 {[%clk 0:02:48]} 3. exd5 {[%clk 0:03:01]}  Qxd5 {[%clk 0:02:46]} 4. Nf3 {[%clk 0:02:59]}  Nf6 {[%clk 0:02:46]} 5. c4 {[%clk 0:02:48]}  Bb4+ {[%clk 0:02:43]} 6. Nc3 {[%clk 0:02:45]}  Qd8 {[%clk 0:02:36]} 7. Bd3 {[%clk 0:02:43]}  Nc6 {[%clk 0:02:35]} 8. O-O {[%clk 0:02:40]}  Nxd4 {[%clk 0:02:34]} 9. Nxd4 {[%clk 0:02:23]}  Qxd4 {[%clk 0:02:34]} 10. Nb5 {[%clk 0:02:23]}  Qd7 {[%clk 0:02:30]} 11. Qa4 {[%clk 0:01:49]}  Bd6 {[%clk 0:02:22]} 12. c5 {[%clk 0:01:45]}  Bxc5 {[%clk 0:01:22]} 13. Nxc7+ {[%clk 0:01:43]}  Ke7 {[%clk 0:01:21]} 14. Qxd7+ {[%clk 0:01:36]}  Bxd7 {[%clk 0:01:22]} 15. Nxa8 {[%clk 0:01:36]}  Rxa8 {[%clk 0:01:23]} 16. Bg5 {[%clk 0:01:28]}  Bc6 {[%clk 0:01:22]} 17. Rfd1 {[%clk 0:01:22]}  h6 {[%clk 0:01:16]} 18. Bh4 {[%clk 0:01:19]}  Bd4 {[%clk 0:01:06]} 19. Rab1 {[%clk 0:01:10]}  Rd8 {[%clk 0:01:05]} 20. Bc2 {[%clk 0:00:59]}  g5 {[%clk 0:01:05]} 21. Bg3 {[%clk 0:00:58]}  Rd7 {[%clk 0:00:55]} 22. b4 {[%clk 0:00:52]}  Nh5 {[%clk 0:00:38]} 23. b5 {[%clk 0:00:48]}  Bxb5 {[%clk 0:00:22]} 24. Rxb5 {[%clk 0:00:45]}  f6 {[%clk 0:00:17]} 25. Kf1 {[%clk 0:00:32]}  b6 {[%clk 0:00:17]} 26. f3 {[%clk 0:00:30]}  e5 {[%clk 0:00:15]} 27. Bf2 {[%clk 0:00:25]}  Rc7 {[%clk 0:00:15]} 28. Be4 {[%clk 0:00:20]}  Bxf2 {[%clk 0:00:14]} 29. Kxf2 {[%clk 0:00:21]}  Nf4 {[%clk 0:00:14]} 30. Rb2 {[%clk 0:00:16]}  Rc5 {[%clk 0:00:09]} 31. Rc2 {[%clk 0:00:15]}  Ra5 {[%clk 0:00:10]} 32. Rc7+ {[%clk 0:00:15]}  Ke6 {[%clk 0:00:10]} 33. Rc6+ {[%clk 0:00:14]}  Ke7 {[%clk 0:00:10]} 34. Rc2 {[%clk 0:00:13]}  Ke6 {[%clk 0:00:10]} 35. g3 {[%clk 0:00:12]}  Nh3+ {[%clk 0:00:05]} 36. Kg2 {[%clk 0:00:12]}  g4 {[%clk 0:00:06]} 37. fxg4 {[%clk 0:00:08]}  f5 {[%clk 0:00:03]} 38. Bxf5+ {[%clk 0:00:08]}  Kf6 {[%clk 0:00:03]} 39. Kxh3 {[%clk 0:00:09]}  e4 {[%clk 0:00:04]} 40. Bxe4 {[%clk 0:00:08]}  Ke5 {[%clk 0:00:04]} 41. Bf5 {[%clk 0:00:08]}  Ra3 {[%clk 0:00:04]} 42. Re2+ {[%clk 0:00:09]}  Kf6 {[%clk 0:00:05]} 43. Rd6+ {[%clk 0:00:09]}  Kf7 {[%clk 0:00:04]} 44. Rxh6 {[%clk 0:00:09]}  b5 {[%clk 0:00:03]} 45. Rd2 {[%clk 0:00:09]}  Kg7 {[%clk 0:00:02]} 46. Rg6+ {[%clk 0:00:09]}  Kf8 {[%clk 0:00:03]} 47. Rd7 {[%clk 0:00:09]}  Ra6 {[%clk 0:00:03]} 48. Rxa6 {[%clk 0:00:09]}  b4 {[%clk 0:00:03]} 49. Raxa7 {[%clk 0:00:09]}  b3 {[%clk 0:00:04]} 50. Ra8# {[%clk 0:00:09]} 1-0


[Site "https://www.chess.com"]

[Event "Titled Tuesday Blitz October 12 2021"]
[White "Le, Tuan Minh"]
[Black "Nenezic, Marko"]
[WhiteFideId "12401153"]
[BlackFideId "912123"]
[WhiteElo "2450"]
[BlackElo "2484"]
[Result "1-0"]
[Round "03"]
[TimeControl "180+1"]
[Date "2021.10.12"]
[WhiteClock "0:00:43"]
[BlackClock "0:00:06"]

1. d4 {[%clk 0:03:00]}  Nf6 {[%clk 0:03:00]} 2. Nf3 {[%clk 0:02:58]}  g6 {[%clk 0:03:00]} 3. Bg5 {[%clk 0:02:58]}  Bg7 {[%clk 0:03:00]} 4. Nbd2 {[%clk 0:02:58]}  O-O {[%clk 0:02:59]} 5. c3 {[%clk 0:02:54]}  d6 {[%clk 0:02:58]} 6. e4 {[%clk 0:02:53]}  c5 {[%clk 0:02:54]} 7. dxc5 {[%clk 0:02:54]}  dxc5 {[%clk 0:02:55]} 8. Bc4 {[%clk 0:02:54]}  h6 {[%clk 0:02:52]} 9. Bxf6 {[%clk 0:02:54]}  Bxf6 {[%clk 0:02:39]} 10. Qe2 {[%clk 0:02:53]}  Qc7 {[%clk 0:02:37]} 11. O-O {[%clk 0:02:53]}  Bg7 {[%clk 0:02:36]} 12. Rfe1 {[%clk 0:02:52]}  Nc6 {[%clk 0:02:35]} 13. h3 {[%clk 0:02:49]}  Na5 {[%clk 0:02:30]} 14. Rad1 {[%clk 0:02:34]}  b6 {[%clk 0:02:23]} 15. Bd5 {[%clk 0:02:27]}  Rb8 {[%clk 0:02:23]} 16. e5 {[%clk 0:02:26]}  e6 {[%clk 0:02:18]} 17. Be4 {[%clk 0:02:07]}  Rd8 {[%clk 0:02:17]} 18. h4 {[%clk 0:01:56]}  Bd7 {[%clk 0:02:05]} 19. h5 {[%clk 0:01:46]}  g5 {[%clk 0:02:05]} 20. Bc2 {[%clk 0:01:44]}  Bc6 {[%clk 0:01:56]} 21. Nh2 {[%clk 0:01:44]}  Rd7 {[%clk 0:01:48]} 22. Ng4 {[%clk 0:01:40]}  Rbd8 {[%clk 0:01:48]} 23. Ne4 {[%clk 0:01:39]}  Rxd1 {[%clk 0:01:43]} 24. Nef6+ {[%clk 0:01:35]}  Bxf6 {[%clk 0:01:40]} 25. Nxf6+ {[%clk 0:01:34]}  Kg7 {[%clk 0:01:38]} 26. Bxd1 {[%clk 0:01:33]}  Bb7 {[%clk 0:01:27]} 27. f4 {[%clk 0:01:18]}  Nc6 {[%clk 0:00:38]} 28. Bc2 {[%clk 0:01:02]}  Ne7 {[%clk 0:00:16]} 29. fxg5 {[%clk 0:01:02]}  hxg5 {[%clk 0:00:15]} 30. h6+ {[%clk 0:01:02]}  Kf8 {[%clk 0:00:12]} 31. Qh5 {[%clk 0:00:51]}  Rd2 {[%clk 0:00:11]} 32. h7 {[%clk 0:00:45]}  Rxg2+ {[%clk 0:00:10]} 33. Kf1 {[%clk 0:00:45]}  Ng6 {[%clk 0:00:06]} 34. h8=Q+ {[%clk 0:00:43]}  Nxh8 {[%clk 0:00:06]} 35. Qxh8+ {[%clk 0:00:43]} 1-0


[Site "https://www.chess.com"]

[Event "Titled Tuesday Blitz October 12 2021"]
[White "Maksimenko, Viktor"]
[Black "Maly, Alexey"]
[WhiteFideId "13710478"]
[BlackFideId "14103184"]
[WhiteElo "2269"]
[BlackElo "2294"]
[Result "0-1"]
[Round "03"]
[TimeControl "180+1"]
[Date "2021.10.12"]
[WhiteClock "0:00:04"]
[BlackClock "0:00:51"]

1. d4 {[%clk 0:03:00]}  d5 {[%clk 0:02:59]} 2. c4 {[%clk 0:03:01]}  dxc4 {[%clk 0:03:00]} 3. Nf3 {[%clk 0:03:00]}  Nf6 {[%clk 0:02:59]} 4. e3 {[%clk 0:03:00]}  e6 {[%clk 0:03:00]} 5. Bxc4 {[%clk 0:02:58]}  a6 {[%clk 0:03:00]} 6. a4 {[%clk 0:02:57]}  c5 {[%clk 0:02:59]} 7. O-O {[%clk 0:02:57]}  Nc6 {[%clk 0:02:59]} 8. Nc3 {[%clk 0:02:57]}  cxd4 {[%clk 0:02:59]} 9. exd4 {[%clk 0:02:58]}  Nb4 {[%clk 0:02:58]} 10. Re1 {[%clk 0:02:53]}  Be7 {[%clk 0:02:57]} 11. Ne5 {[%clk 0:02:49]}  O-O {[%clk 0:02:56]} 12. Bg5 {[%clk 0:02:43]}  Nfd5 {[%clk 0:02:52]} 13. Bd2 {[%clk 0:02:27]}  Bd7 {[%clk 0:02:42]} 14. Rc1 {[%clk 0:01:41]}  Rc8 {[%clk 0:02:39]} 15. Qf3 {[%clk 0:01:41]}  Bc6 {[%clk 0:02:32]} 16. Nxc6 {[%clk 0:01:39]}  Rxc6 {[%clk 0:02:23]} 17. Nxd5 {[%clk 0:01:31]}  Nxd5 {[%clk 0:02:20]} 18. Bxd5 {[%clk 0:01:20]}  Rxc1 {[%clk 0:02:08]} 19. Rxc1 {[%clk 0:01:13]}  exd5 {[%clk 0:02:06]} 20. Qb3 {[%clk 0:01:13]}  Qd7 {[%clk 0:02:03]} 21. Bf4 {[%clk 0:01:13]}  Bd8 {[%clk 0:01:50]} 22. h3 {[%clk 0:01:10]}  Re8 {[%clk 0:01:47]} 23. Be5 {[%clk 0:01:02]}  Re6 {[%clk 0:01:41]} 24. Rc3 {[%clk 0:01:00]}  Rc6 {[%clk 0:01:38]} 25. Re3 {[%clk 0:00:53]}  h6 {[%clk 0:01:28]} 26. Rc3 {[%clk 0:00:46]}  Ba5 {[%clk 0:01:23]} 27. Rxc6 {[%clk 0:00:44]}  Qxc6 {[%clk 0:01:24]} 28. g4 {[%clk 0:00:40]}  Bb6 {[%clk 0:01:18]} 29. Qf3 {[%clk 0:00:33]}  f6 {[%clk 0:01:12]} 30. Bg3 {[%clk 0:00:33]}  Bxd4 {[%clk 0:01:12]} 31. b3 {[%clk 0:00:33]}  Qe6 {[%clk 0:01:04]} 32. Kg2 {[%clk 0:00:27]}  Qe4 {[%clk 0:01:03]} 33. h4 {[%clk 0:00:20]}  g6 {[%clk 0:00:58]} 34. h5 {[%clk 0:00:18]}  Kf7 {[%clk 0:00:56]} 35. hxg6+ {[%clk 0:00:13]}  Kxg6 {[%clk 0:00:57]} 36. Qxe4+ {[%clk 0:00:12]}  dxe4 {[%clk 0:00:58]} 37. f3 {[%clk 0:00:13]}  f5 {[%clk 0:00:54]} 38. Bf4 {[%clk 0:00:06]}  h5 {[%clk 0:00:50]} 39. gxh5+ {[%clk 0:00:04]}  Kxh5 {[%clk 0:00:51]} 40. fxe4 {[%clk 0:00:05]}  fxe4 {[%clk 0:00:52]} 41. Kf1 {[%clk 0:00:06]}  Kg4 {[%clk 0:00:52]} 42. Bd6 {[%clk 0:00:04]}  Kf3 {[%clk 0:00:52]} 43. Bc5 {[%clk 0:00:04]}  Bxc5 {[%clk 0:00:51]} 0-1


[Site "https://www.chess.com"]

[Event "Titled Tuesday Blitz October 12 2021"]
[White "Moroni, Luca Jr"]
[Black "Ovchinnikov, Vsevolod"]
[WhiteFideId "865834"]
[BlackFideId "24176842"]
[WhiteElo "2491"]
[BlackElo "2376"]
[Result "1-0"]
[Round "03"]
[TimeControl "180+1"]
[Date "2021.10.12"]
[WhiteClock "0:00:19"]
[BlackClock "0:00:02"]

1. d4 {[%clk 0:03:00]}  Nf6 {[%clk 0:03:00]} 2. c4 {[%clk 0:03:01]}  g6 {[%clk 0:03:00]} 3. Nc3 {[%clk 0:03:01]}  d5 {[%clk 0:03:01]} 4. cxd5 {[%clk 0:03:02]}  Nxd5 {[%clk 0:03:00]} 5. Bd2 {[%clk 0:03:02]}  Bg7 {[%clk 0:03:00]} 6. Nf3 {[%clk 0:03:02]}  O-O {[%clk 0:03:00]} 7. Rc1 {[%clk 0:03:02]}  Nb6 {[%clk 0:02:56]} 8. Bf4 {[%clk 0:02:49]}  c6 {[%clk 0:02:56]} 9. e3 {[%clk 0:02:49]}  Bg4 {[%clk 0:02:55]} 10. Be2 {[%clk 0:02:49]}  N8d7 {[%clk 0:02:56]} 11. O-O {[%clk 0:02:48]}  Bxf3 {[%clk 0:02:52]} 12. Bxf3 {[%clk 0:02:48]}  e5 {[%clk 0:02:53]} 13. dxe5 {[%clk 0:02:48]}  Nxe5 {[%clk 0:02:54]} 14. Be2 {[%clk 0:02:48]}  Qxd1 {[%clk 0:02:39]} 15. Rfxd1 {[%clk 0:02:47]}  Rad8 {[%clk 0:02:39]} 16. b3 {[%clk 0:02:42]}  f5 {[%clk 0:02:31]} 17. Bg5 {[%clk 0:02:36]}  Rxd1+ {[%clk 0:02:28]} 18. Nxd1 {[%clk 0:02:21]}  h6 {[%clk 0:02:14]} 19. Be7 {[%clk 0:02:20]}  Rf7 {[%clk 0:02:12]} 20. Bc5 {[%clk 0:02:18]}  Rd7 {[%clk 0:02:11]} 21. a4 {[%clk 0:01:53]}  Nd3 {[%clk 0:01:56]} 22. Bxd3 {[%clk 0:01:46]}  Rxd3 {[%clk 0:01:57]} 23. Bxb6 {[%clk 0:01:24]}  axb6 {[%clk 0:01:56]} 24. Rb1 {[%clk 0:01:24]}  Kf7 {[%clk 0:01:45]} 25. Kf1 {[%clk 0:01:24]}  Rd2 {[%clk 0:01:46]} 26. Ke1 {[%clk 0:01:11]}  Ra2 {[%clk 0:01:46]} 27. Kf1 {[%clk 0:00:58]}  Ke6 {[%clk 0:01:43]} 28. f3 {[%clk 0:00:58]}  Be5 {[%clk 0:01:34]} 29. f4 {[%clk 0:00:44]}  Bf6 {[%clk 0:01:21]} 30. Nf2 {[%clk 0:00:41]}  Rc2 {[%clk 0:00:55]} 31. Nd3 {[%clk 0:00:39]}  Rd2 {[%clk 0:00:49]} 32. Nf2 {[%clk 0:00:38]}  Kd5 {[%clk 0:00:46]} 33. Ke1 {[%clk 0:00:34]}  Bc3 {[%clk 0:00:43]} 34. Rd1 {[%clk 0:00:33]}  Rxd1+ {[%clk 0:00:43]} 35. Kxd1 {[%clk 0:00:34]}  Kc5 {[%clk 0:00:16]} 36. Kc2 {[%clk 0:00:31]}  Bg7 {[%clk 0:00:13]} 37. Nd3+ {[%clk 0:00:27]}  Kd5 {[%clk 0:00:14]} 38. Nf2 {[%clk 0:00:27]}  Kc5 {[%clk 0:00:14]} 39. g4 {[%clk 0:00:26]}  Kd5 {[%clk 0:00:13]} 40. Kd3 {[%clk 0:00:24]}  Bf8 {[%clk 0:00:10]} 41. gxf5 {[%clk 0:00:19]}  gxf5 {[%clk 0:00:11]} 42. e4+ {[%clk 0:00:20]}  fxe4+ {[%clk 0:00:11]} 43. Nxe4 {[%clk 0:00:21]}  Ke6 {[%clk 0:00:11]} 44. Ng3 {[%clk 0:00:21]}  Bd6 {[%clk 0:00:11]} 45. Ke4 {[%clk 0:00:21]}  Kf6 {[%clk 0:00:09]} 46. Nf5 {[%clk 0:00:20]}  Bf8 {[%clk 0:00:10]} 47. h3 {[%clk 0:00:20]}  Ke6 {[%clk 0:00:09]} 48. Nd4+ {[%clk 0:00:20]}  Kf6 {[%clk 0:00:09]} 49. Nf3 {[%clk 0:00:21]}  Bd6 {[%clk 0:00:09]} 50. Ne5 {[%clk 0:00:21]}  Bxe5 {[%clk 0:00:05]} 51. fxe5+ {[%clk 0:00:21]}  Ke6 {[%clk 0:00:06]} 52. Kf4 {[%clk 0:00:19]}  h5 {[%clk 0:00:02]} 53. h4 {[%clk 0:00:19]} 1-0


[Site "https://www.chess.com"]